Workbook

Sheet Pasiūlymas
A2: PIRKIMO SĄLYGŲ PRIEDAS "PASIŪLYMO FORMA"
A4: REAGENTAI IR VIENKARTINĖS PRIEMONĖS PATOLOGINIAMS TYRIMAMS
A6: Kam: | B6: VšĮ LSMU Kauno ligoninė
A8: Data: | B8: 2023-03-10
A9: Nr.: | B9: 2303-02
A10: Vieta: | B10: Vilnius
A12: Tiekėjo pavadinimas / Ūkio subjektų grupės nariai: | C12: UAB “Eurochemicals”
A13: Tiekėjo kodas (-ai): | C13: 302424417
A14: Tiekėjo adresas (-ai): | C14: Terminalo g., 1, Kuprioniškės, Vilniaus raj. LT-13279
A15: Tiekėjo PVM mokėtojo kodas(-ai): | C15: LT100004876410
A16: Tiekėjo / Ūkio subjektų grupės atsakingo partnerio sąskaitos numeris, banko pavadinimas ir banko kodas (-ai): | C16: A/s LT87 7044 0600 0710 5237 AB Seb bankas, banko kodas 70440
A17: Asmens atsakingo už pasiūlymą vardas, pavardė: | C17: Domna Gurinova
A18: Asmens atsakingo už pasiūlymą telefono numeris, el. pašto adresas: | C18: 8 5 2056030, info@eurochemicals.lt
A19: Tiekėjo / Ūkio subjektų grupės, laimėjimo atveju, pasirašančio sutartį asmens vardas, pavardė, pareigos: | C19: Alexander Korochin, direktorius
A20: Tiekėjo / Ūkio subjektų grupės, laimėjimo atveju, už sutarties vykdymą atsakingo asmens vardas, pavardė, telefono numeris, elektroninio pašto adresas: | C20: Vadybininkė Irina Vostriagova, 8 5 2056030, info@eurochemicals.lt
A21: (1) Tiekėjo / Ūkio subjektų grupės narių, (2) ūkio subjektų, kurių pajėgumais remiamasi, ir (3) jei pašalinimo pagrindai taikomi visiems subtiekėjams - subtiekėjų, kolegialaus priežiūros organo (Stebėtojų tarybos) ir (ar) kolegialaus valdymo organo (Valdybos) narių sąrašas (jei sudaryta) ir (ar) asmuo, kuriam suteikti VPĮ 46 str. 2 d. 2 p. numatyti įgaliojimai | G21: =IF((SUMPRODUCT(--(C21=""))>0), "Privaloma užpildyti, kai taikomi pašalinimo pagrindai", "") -> Privaloma užpildyti, kai taikomi pašalinimo pagrindai
A23: Tiekėjo patvirtinimai:
A24: 1. Šiuo pasiūlymu pažymime, kad sutinkame su visomi pirkimo sąlygomis, nustatytomis:
A25: 1.1. viešojo pirkimo dokumentuose
A26: 1.2. kituose pirkimo dokumentuose (jų paaiškinimuose, papildymuose).
A27: 2. Patvirtiname, kad informacija ir duomenys, pateikti pasiūlyme, yra teisingi ir apima viską, ko reikia tinkamam sutarties įvykdymui
A28: 3. Patvirtiname, kad jei pasiūlyme nenurodyti kolegialaus priežiūros/valdymo organų nariai, šie organai juridiniuose asmenyse nėra sudaryti (taikoma, kai pirkimo dokumentuose nustatyti pašalinimo pagrindai).
A29: 4. Pasiūlymas galioja iki termino, nustatyto pirkimo dokumentuose.
A30: 5. Tais atvejais, kai pagal galiojančius teisės aktus tiekėjui nereikia mokėti PVM, jis nurodo priežastis, dėl kurių PVM nemoka:
A31: 6. Tiekėjas kainas pateikia, nurodydamas ne daugiau skaičių po kablelio, nei leidžiama pirkimo dokumentuose.
A32: 1. DALIS | B32: OBJEKTYVINIAI STIKLELIAI
A34: Tiekėjo pasiūlymas:
A35: Nr. | B35: Pavadinimas | C35: Kiekis | D35: Mato vienetas | E35: Kaina be PVM, Eur | F35: Suma be PVM, Eur | G35: Gamintojas, modelis
A36: 1. | B36: Objektyviniai stikleliai
A37: 1.1. | B37: Objektyviniai stikleliai | C37: 90000 | D37: vnt. | F37: =IF(ISBLANK(E37),"", PRODUCT(C37,E37)) -> 
A38: 1.2. | B38: Objektyviniai stikleliai padengti polilizinu su elektrostatiniu krūviu | C38: 4000 | D38: vnt. | F38: =IF(ISBLANK(E38),"", PRODUCT(C38,E38)) -> 
E39: Suma be PVM | F39: =IF((SUMPRODUCT(--(F37:F38=""))>0), "", SUM(F37:F38)) ->  | G39: =IF((SUMPRODUCT(--(F37:F38=""))>0), "Neužpildytos visų objektų kainos", "") -> Neužpildytos visų objektų kainos
C40: Taikomas PVM dydis (%) | E40: PVM suma | F40: =IF(OR(F39="",D40=""),"", PRODUCT(D40,F39)/100) ->  | G40: =IF(D40="", "Nurodykite taikomą PVM dydį", "") -> Nurodykite taikomą PVM dydį
E41: Suma su PVM | F41: =IF(ISBLANK(F40), "", SUM(F39:F40)) -> 0
A45: 2. DALIS | B45: DENGIAMIEJI STIKLELIAI
A47: Tiekėjo pasiūlymas:
A48: Nr. | B48: Pavadinimas | C48: Kiekis | D48: Mato vienetas | E48: Kaina be PVM, Eur | F48: Suma be PVM, Eur | G48: Gamintojas, modelis
A49: 2. | B49: Dengiamieji stikleliai
A50: 2.1. | B50: Dengiamieji stikleliai 24x50 mm | C50: 68000 | D50: vnt. | F50: =IF(ISBLANK(E50),"", PRODUCT(C50,E50)) -> 
A51: 2.2. | B51: Dengiamieji stikleliai 24x60 mm | C51: 34000 | D51: vnt. | F51: =IF(ISBLANK(E51),"", PRODUCT(C51,E51)) -> 
E52: Suma be PVM | F52: =IF((SUMPRODUCT(--(F50:F51=""))>0), "", SUM(F50:F51)) ->  | G52: =IF((SUMPRODUCT(--(F50:F51=""))>0), "Neužpildytos visų objektų kainos", "") -> Neužpildytos visų objektų kainos
C53: Taikomas PVM dydis (%) | E53: PVM suma | F53: =IF(OR(F52="",D53=""),"", PRODUCT(D53,F52)/100) ->  | G53: =IF(D53="", "Nurodykite taikomą PVM dydį", "") -> Nurodykite taikomą PVM dydį
E54: Suma su PVM | F54: =IF(ISBLANK(F53), "", SUM(F52:F53)) -> 0
A58: 3. DALIS | B58: HISTOLOGINIAI AŠMENYS
A60: Tiekėjo pasiūlymas:
A61: Nr. | B61: Pavadinimas | C61: Kiekis | D61: Mato vienetas | E61: Kaina be PVM, Eur | F61: Suma be PVM, Eur | G61: Gamintojas, modelis
A62: 3. | B62: HISTOLOGINIAI AŠMENYS
A63: 3.1. | B63: Histologiniai ašmenys S35 | C63: 5300 | D63: vnt. | F63: =IF(ISBLANK(E63),"", PRODUCT(C63,E63)) -> 
A64: 3.2. | B64: Histologiniai ašmenys N35 | C64: 200 | D64: vnt. | F64: =IF(ISBLANK(E64),"", PRODUCT(C64,E64)) -> 
A65: 3.3. | B65: Histologiniai ašmenys S22 | C65: 200 | D65: vnt. | F65: =IF(ISBLANK(E65),"", PRODUCT(C65,E65)) -> 
E66: Suma be PVM | F66: =IF((SUMPRODUCT(--(F63:F65=""))>0), "", SUM(F63:F65)) ->  | G66: =IF((SUMPRODUCT(--(F63:F65=""))>0), "Neužpildytos visų objektų kainos", "") -> Neužpildytos visų objektų kainos
C67: Taikomas PVM dydis (%) | E67: PVM suma | F67: =IF(OR(F66="",D67=""),"", PRODUCT(D67,F66)/100) ->  | G67: =IF(D67="", "Nurodykite taikomą PVM dydį", "") -> Nurodykite taikomą PVM dydį
E68: Suma su PVM | F68: =IF(ISBLANK(F67), "", SUM(F66:F67)) -> 0
A72: 4. DALIS | B72: HISTOLOGINĖS KASETĖS
A74: Tiekėjo pasiūlymas:
A75: Nr. | B75: Pavadinimas | C75: Kiekis | D75: Mato vienetas | E75: Kaina be PVM, Eur | F75: Suma be PVM, Eur | G75: Gamintojas, modelis
A76: 4. | B76: HISTOLOGINĖS KASETĖS
A77: 4.1. | B77: Histologinės kasetės su dangteliais geltonos | C77: 48000 | D77: vnt. | F77: =IF(ISBLANK(E77),"", PRODUCT(C77,E77)) -> 
A78: 4.2. | B78: Histologinės kasetės su dangteliais baltos | C78: 45000 | D78: vnt. | F78: =IF(ISBLANK(E78),"", PRODUCT(C78,E78)) -> 
E79: Suma be PVM | F79: =IF((SUMPRODUCT(--(F77:F78=""))>0), "", SUM(F77:F78)) ->  | G79: =IF((SUMPRODUCT(--(F77:F78=""))>0), "Neužpildytos visų objektų kainos", "") -> Neužpildytos visų objektų kainos
C80: Taikomas PVM dydis (%) | E80: PVM suma | F80: =IF(OR(F79="",D80=""),"", PRODUCT(D80,F79)/100) ->  | G80: =IF(D80="", "Nurodykite taikomą PVM dydį", "") -> Nurodykite taikomą PVM dydį
E81: Suma su PVM | F81: =IF(ISBLANK(F80), "", SUM(F79:F80)) -> 0
A85: 5. DALIS | B85: BIOPSINĖS KEMPINĖLĖS
A87: Tiekėjo pasiūlymas:
A88: Nr. | B88: Pavadinimas | C88: Kiekis | D88: Mato vienetas | E88: Kaina be PVM, Eur | F88: Suma be PVM, Eur | G88: Gamintojas, modelis
A89: 5. | B89: BIOPSINĖS KEMPINĖLĖS
A90: 5.1. | B90: Biopsinės kempinėlės | C90: 48000 | D90: vnt. | F90: =IF(ISBLANK(E90),"", PRODUCT(C90,E90)) -> 
E91: Suma be PVM | F91: =IF(F90="","",SUM(F90:F90)) ->  | G91: =IF(F90="","Neužpildytos visos objektų kainos","") -> Neužpildytos visos objektų kainos
C92: Taikomas PVM dydis (%) | E92: PVM suma | F92: =IF(OR(F91="",D92=""),"", PRODUCT(D92,F91)/100) ->  | G92: =IF(D92="", "Nurodykite taikomą PVM dydį", "") -> Nurodykite taikomą PVM dydį
E93: Suma su PVM | F93: =IF(ISBLANK(F92), "", SUM(F91:F92)) -> 0
A97: 6. DALIS | B97: FORMALINAS
A99: Tiekėjo pasiūlymas:
A100: Nr. | B100: Pavadinimas | C100: Kiekis | D100: Mato vienetas | E100: Kaina be PVM, Eur | F100: Suma be PVM, Eur | G100: Gamintojas, modelis
A101: 6. | B101: FORMALINAS
A102: 6.1. | B102: Formalinas | C102: 2000 | D102: L | E102: 1.4 | F102: =IF(ISBLANK(E102),"", PRODUCT(C102,E102)) -> 2800 | G102: Diapath, Kat. Nr. F0048
E103: Suma be PVM | F103: =IF(F102="","",SUM(F102:F102)) -> 2800 | G103: =IF(F102="","Neužpildytos visos objektų kainos","") -> 
C104: Taikomas PVM dydis (%) | D104: 5 | E104: PVM suma | F104: =IF(OR(F103="",D104=""),"", PRODUCT(D104,F103)/100) -> 140 | G104: =IF(D104="", "Nurodykite taikomą PVM dydį", "") -> 
E105: Suma su PVM | F105: =IF(ISBLANK(F104), "", SUM(F103:F104)) -> 2940
A109: 7. DALIS | B109: IZOPROPANOLIS
A111: Tiekėjo pasiūlymas:
A112: Nr. | B112: Pavadinimas | C112: Kiekis | D112: Mato vienetas | E112: Kaina be PVM, Eur | F112: Suma be PVM, Eur | G112: Gamintojas, modelis
A113: 7. | B113: Izopropanolis
A114: 7.1. | B114: Izopropanolis | C114: 1900 | D114: L | E114: 6.1 | F114: =IF(ISBLANK(E114),"", PRODUCT(C114,E114)) -> 11590 | G114: Carlo Erba, Izopropilo spiritas Ph.Eur.-USP-Ph.Franc.-BP, Kat. Nr. 309507
E115: Suma be PVM | F115: =IF(F114="","",SUM(F114:F114)) -> 11590 | G115: =IF(F114="","Neužpildytos visos objektų kainos","") -> 
C116: Taikomas PVM dydis (%) | D116: 5 | E116: PVM suma | F116: =IF(OR(F115="",D116=""),"", PRODUCT(D116,F115)/100) -> 579.5 | G116: =IF(D116="", "Nurodykite taikomą PVM dydį", "") -> 
E117: Suma su PVM | F117: =IF(ISBLANK(F116), "", SUM(F115:F116)) -> 12169.5
A121: 8. DALIS | B121: KSILENAS
A123: Tiekėjo pasiūlymas:
A124: Nr. | B124: Pavadinimas | C124: Kiekis | D124: Mato vienetas | E124: Kaina be PVM, Eur | F124: Suma be PVM, Eur | G124: Gamintojas, modelis
A125: 8. | B125: KSILENAS
A126: 8.1. | B126: Ksilenas | C126: 1800 | D126: L | E126: 5.2 | F126: =IF(ISBLANK(E126),"", PRODUCT(C126,E126)) -> 9360 | G126: Diapath, Kat. Nr. X0056
E127: Suma be PVM | F127: =IF(F126="","",SUM(F126:F126)) -> 9360 | G127: =IF(F126="","Neužpildytos visos objektų kainos","") -> 
C128: Taikomas PVM dydis (%) | D128: 5 | E128: PVM suma | F128: =IF(OR(F127="",D128=""),"", PRODUCT(D128,F127)/100) -> 468 | G128: =IF(D128="", "Nurodykite taikomą PVM dydį", "") -> 
E129: Suma su PVM | F129: =IF(ISBLANK(F128), "", SUM(F127:F128)) -> 9828
A133: 9. DALIS | B133: PARAFINAS
A135: Tiekėjo pasiūlymas:
A136: Nr. | B136: Pavadinimas | C136: Kiekis | D136: Mato vienetas | E136: Kaina be PVM, Eur | F136: Suma be PVM, Eur | G136: Gamintojas, modelis
A137: 9. | B137: PARAFINAS
A138: 9.1. | B138: Parafinas histologijai | C138: 800 | D138: kg | E138: 9.8 | F138: =IF(ISBLANK(E138),"", PRODUCT(C138,E138)) -> 7840 | G138: Carlo Erba, Kat. Nr. 467958
E139: Suma be PVM | F139: =IF(F138="","",SUM(F138:F138)) -> 7840 | G139: =IF(F138="","Neužpildytos visos objektų kainos","") -> 
C140: Taikomas PVM dydis (%) | D140: 5 | E140: PVM suma | F140: =IF(OR(F139="",D140=""),"", PRODUCT(D140,F139)/100) -> 392 | G140: =IF(D140="", "Nurodykite taikomą PVM dydį", "") -> 
E141: Suma su PVM | F141: =IF(ISBLANK(F140), "", SUM(F139:F140)) -> 8232
A145: 10. DALIS | B145: AUDINIŲ DEKALCINATAS
A147: Tiekėjo pasiūlymas:
A148: Nr. | B148: Pavadinimas | C148: Kiekis | D148: Mato vienetas | E148: Kaina be PVM, Eur | F148: Suma be PVM, Eur | G148: Gamintojas, modelis
A149: 10. | B149: AUDINIŲ DEKALCINATAS
A150: 10.1. | B150: Audinių dekalcinatas stiprių mineralinių rūgščių pagrindu | C150: 50 | D150: L | F150: =IF(ISBLANK(E150),"", PRODUCT(C150,E150)) -> 
A151: 10.2. | B151: Audinių dekalcinatas organinių rūgščių pagrindu | C151: 32 | D151: L | F151: =IF(ISBLANK(E151),"", PRODUCT(C151,E151)) -> 
E152: Suma be PVM | F152: =IF((SUMPRODUCT(--(F150:F151=""))>0), "", SUM(F150:F151)) ->  | G152: =IF((SUMPRODUCT(--(F150:F151=""))>0), "Neužpildytos visų objektų kainos", "") -> Neužpildytos visų objektų kainos
C153: Taikomas PVM dydis (%) | E153: PVM suma | F153: =IF(OR(F152="",D153=""),"", PRODUCT(D153,F152)/100) ->  | G153: =IF(D153="", "Nurodykite taikomą PVM dydį", "") -> Nurodykite taikomą PVM dydį
E154: Suma su PVM | F154: =IF(ISBLANK(F153), "", SUM(F152:F153)) -> 0
A158: 11. DALIS | B158: OBJEKTYVINIŲ STIKLELIŲ DENGIMO SKYSTIS
A160: Tiekėjo pasiūlymas:
A161: Nr. | B161: Pavadinimas | C161: Kiekis | D161: Mato vienetas | E161: Kaina be PVM, Eur | F161: Suma be PVM, Eur | G161: Gamintojas, modelis
A162: 11. | B162: OBJEKTYVINIŲ STIKLELIŲ DENGIMO SKYSTIS
A163: 11.1. | B163: Objektyvinių stiklelių dengimo skystis | C163: 16 | D163: L | F163: =IF(ISBLANK(E163),"", PRODUCT(C163,E163)) -> 
E164: Suma be PVM | F164: =IF(F163="","",SUM(F163:F163)) ->  | G164: =IF(F163="","Neužpildytos visos objektų kainos","") -> Neužpildytos visos objektų kainos
C165: Taikomas PVM dydis (%) | E165: PVM suma | F165: =IF(OR(F164="",D165=""),"", PRODUCT(D165,F164)/100) ->  | G165: =IF(D165="", "Nurodykite taikomą PVM dydį", "") -> Nurodykite taikomą PVM dydį
E166: Suma su PVM | F166: =IF(ISBLANK(F165), "", SUM(F164:F165)) -> 0
A170: 12. DALIS | B170: KRIOSTATINIS UŽPILAS
A172: Tiekėjo pasiūlymas:
A173: Nr. | B173: Pavadinimas | C173: Kiekis | D173: Mato vienetas | E173: Kaina be PVM, Eur | F173: Suma be PVM, Eur | G173: Gamintojas, modelis
A174: 12. | B174: KRIOSTATINIS UŽPILAS
A175: 12.1. | B175: Kriostatinis užpilas | C175: 240 | D175: ml | F175: =IF(ISBLANK(E175),"", PRODUCT(C175,E175)) -> 
E176: Suma be PVM | F176: =IF(F175="","",SUM(F175:F175)) ->  | G176: =IF(F175="","Neužpildytos visos objektų kainos","") -> Neužpildytos visos objektų kainos
C177: Taikomas PVM dydis (%) | E177: PVM suma | F177: =IF(OR(F176="",D177=""),"", PRODUCT(D177,F176)/100) ->  | G177: =IF(D177="", "Nurodykite taikomą PVM dydį", "") -> Nurodykite taikomą PVM dydį
E178: Suma su PVM | F178: =IF(ISBLANK(F177), "", SUM(F176:F177)) -> 0
A182: 13. DALIS | B182: DRUSKOS RŪGŠTIS
A184: Tiekėjo pasiūlymas:
A185: Nr. | B185: Pavadinimas | C185: Kiekis | D185: Mato vienetas | E185: Kaina be PVM, Eur | F185: Suma be PVM, Eur | G185: Gamintojas, modelis
A186: 13. | B186: DRUSKOS RŪGŠTIS
A187: 13.1. | B187: Druskos rūgštis | C187: 14 | D187: L | F187: =IF(ISBLANK(E187),"", PRODUCT(C187,E187)) -> 
E188: Suma be PVM | F188: =IF(F187="","",SUM(F187:F187)) ->  | G188: =IF(F187="","Neužpildytos visos objektų kainos","") -> Neužpildytos visos objektų kainos
C189: Taikomas PVM dydis (%) | E189: PVM suma | F189: =IF(OR(F188="",D189=""),"", PRODUCT(D189,F188)/100) ->  | G189: =IF(D189="", "Nurodykite taikomą PVM dydį", "") -> Nurodykite taikomą PVM dydį
E190: Suma su PVM | F190: =IF(ISBLANK(F189), "", SUM(F188:F189)) -> 0
A194: 14. DALIS | B194: LEDINĖ ACTO RŪGŠTIS
A196: Tiekėjo pasiūlymas:
A197: Nr. | B197: Pavadinimas | C197: Kiekis | D197: Mato vienetas | E197: Kaina be PVM, Eur | F197: Suma be PVM, Eur | G197: Gamintojas, modelis
A198: 14. | B198: LEDINĖ ACTO RŪGŠTIS
A199: 14.1. | B199: Ledinė acto rūgštis | C199: 1 | D199: L | F199: =IF(ISBLANK(E199),"", PRODUCT(C199,E199)) -> 
E200: Suma be PVM | F200: =IF(F199="","",SUM(F199:F199)) ->  | G200: =IF(F199="","Neužpildytos visos objektų kainos","") -> Neužpildytos visos objektų kainos
C201: Taikomas PVM dydis (%) | E201: PVM suma | F201: =IF(OR(F200="",D201=""),"", PRODUCT(D201,F200)/100) ->  | G201: =IF(D201="", "Nurodykite taikomą PVM dydį", "") -> Nurodykite taikomą PVM dydį
E202: Suma su PVM | F202: =IF(ISBLANK(F201), "", SUM(F200:F201)) -> 0
A206: 15. DALIS | B206: REAGENTAI DAŽYMUI HEMATOKSILINO - EOZINO BŪDU
A208: Tiekėjo pasiūlymas:
A209: Nr. | B209: Pavadinimas | C209: Kiekis | D209: Mato vienetas | E209: Kaina be PVM, Eur | F209: Suma be PVM, Eur | G209: Gamintojas, modelis
A210: 15. | B210: REAGENTAI DAŽYMUI HEMATOKSILINO - EOZINO BŪDU
A211: 15.1. | B211: Hematoksilino dažai | C211: 12 | D211: kompl. | F211: =IF(ISBLANK(E211),"", PRODUCT(C211,E211)) -> 
A212: 15.2. | B212: Eozino dažai | C212: 12 | D212: kompl. | F212: =IF(ISBLANK(E212),"", PRODUCT(C212,E212)) -> 
A213: 15.3. | B213: Skaidrinimo reagentas | C213: 40 | D213: L | F213: =IF(ISBLANK(E213),"", PRODUCT(C213,E213)) -> 
A214: 15.4. | B214: Melsvinimo reagentas | C214: 40 | D214: L | F214: =IF(ISBLANK(E214),"", PRODUCT(C214,E214)) -> 
E215: Suma be PVM | F215: =IF((SUMPRODUCT(--(F211:F214=""))>0), "", SUM(F211:F214)) ->  | G215: =IF((SUMPRODUCT(--(F211:F214=""))>0), "Neužpildytos visų objektų kainos", "") -> Neužpildytos visų objektų kainos
C216: Taikomas PVM dydis (%) | E216: PVM suma | F216: =IF(OR(F215="",D216=""),"", PRODUCT(D216,F215)/100) ->  | G216: =IF(D216="", "Nurodykite taikomą PVM dydį", "") -> Nurodykite taikomą PVM dydį
E217: Suma su PVM | F217: =IF(ISBLANK(F216), "", SUM(F215:F216)) -> 0
A221: 16. DALIS | B221: ŠIFO REAGENTAS
A223: Tiekėjo pasiūlymas:
A224: Nr. | B224: Pavadinimas | C224: Kiekis | D224: Mato vienetas | E224: Kaina be PVM, Eur | F224: Suma be PVM, Eur | G224: Gamintojas, modelis
A225: 16. | B225: ŠIFO REAGENTAS
A226: 16.1. | B226: Šifo reagentas | C226: 9 | D226: L | F226: =IF(ISBLANK(E226),"", PRODUCT(C226,E226)) -> 
E227: Suma be PVM | F227: =IF(F226="","",SUM(F226:F226)) ->  | G227: =IF(F226="","Neužpildytos visos objektų kainos","") -> Neužpildytos visos objektų kainos
C228: Taikomas PVM dydis (%) | E228: PVM suma | F228: =IF(OR(F227="",D228=""),"", PRODUCT(D228,F227)/100) ->  | G228: =IF(D228="", "Nurodykite taikomą PVM dydį", "") -> Nurodykite taikomą PVM dydį
E229: Suma su PVM | F229: =IF(ISBLANK(F228), "", SUM(F227:F228)) -> 0
A233: 17. DALIS | B233: PERJODINĖ RŪGŠTIS
A235: Tiekėjo pasiūlymas:
A236: Nr. | B236: Pavadinimas | C236: Kiekis | D236: Mato vienetas | E236: Kaina be PVM, Eur | F236: Suma be PVM, Eur | G236: Gamintojas, modelis
A237: 17. | B237: Perjodinė rūgštis
A238: 17.1. | B238: Perjodinė rūgštis | C238: 400 | D238: g | E238: 0.71 | F238: =IF(ISBLANK(E238),"", PRODUCT(C238,E238)) -> 284 | G238: Carlo Erba, Kat. Nr. 409184
E239: Suma be PVM | F239: =IF(F238="","",SUM(F238:F238)) -> 284 | G239: =IF(F238="","Neužpildytos visos objektų kainos","") -> 
C240: Taikomas PVM dydis (%) | D240: 5 | E240: PVM suma | F240: =IF(OR(F239="",D240=""),"", PRODUCT(D240,F239)/100) -> 14.2 | G240: =IF(D240="", "Nurodykite taikomą PVM dydį", "") -> 
E241: Suma su PVM | F241: =IF(ISBLANK(F240), "", SUM(F239:F240)) -> 298.2
A245: 18. DALIS | B245: ALCIANO MĖLIS
A247: Tiekėjo pasiūlymas:
A248: Nr. | B248: Pavadinimas | C248: Kiekis | D248: Mato vienetas | E248: Kaina be PVM, Eur | F248: Suma be PVM, Eur | G248: Gamintojas, modelis
A249: 18. | B249: ALCIANO MĖLIS
A250: 18.1. | B250: Alciano mėlis 8 GX | C250: 100 | D250: g | E250: 5.78 | F250: =IF(ISBLANK(E250),"", PRODUCT(C250,E250)) -> 578 | G250: Carlo Erba, Kat. Nr. 428561
E251: Suma be PVM | F251: =IF(F250="","",SUM(F250:F250)) -> 578 | G251: =IF(F250="","Neužpildytos visos objektų kainos","") -> 
C252: Taikomas PVM dydis (%) | D252: 5 | E252: PVM suma | F252: =IF(OR(F251="",D252=""),"", PRODUCT(D252,F251)/100) -> 28.9 | G252: =IF(D252="", "Nurodykite taikomą PVM dydį", "") -> 
E253: Suma su PVM | F253: =IF(ISBLANK(F252), "", SUM(F251:F252)) -> 606.9
A257: 19. DALIS | B257: GIEMSA DAŽAI
A259: Tiekėjo pasiūlymas:
A260: Nr. | B260: Pavadinimas | C260: Kiekis | D260: Mato vienetas | E260: Kaina be PVM, Eur | F260: Suma be PVM, Eur | G260: Gamintojas, modelis
A261: 19. | B261: GIEMSA DAŽAI
A262: 19.1. | B262: Giemsa dažai histologijai | C262: 16 | D262: L | F262: =IF(ISBLANK(E262),"", PRODUCT(C262,E262)) -> 
E263: Suma be PVM | F263: =IF(F262="","",SUM(F262:F262)) ->  | G263: =IF(F262="","Neužpildytos visos objektų kainos","") -> Neužpildytos visos objektų kainos
C264: Taikomas PVM dydis (%) | E264: PVM suma | F264: =IF(OR(F263="",D264=""),"", PRODUCT(D264,F263)/100) ->  | G264: =IF(D264="", "Nurodykite taikomą PVM dydį", "") -> Nurodykite taikomą PVM dydį
E265: Suma su PVM | F265: =IF(ISBLANK(F264), "", SUM(F263:F264)) -> 0
A269: 20. DALIS | B269: MUCIKARMINO DAŽAI
A271: Tiekėjo pasiūlymas:
A272: Nr. | B272: Pavadinimas | C272: Kiekis | D272: Mato vienetas | E272: Kaina be PVM, Eur | F272: Suma be PVM, Eur | G272: Gamintojas, modelis
A273: 20. | B273: MUCIKARMINO DAŽAI
A274: 20.1. | B274: Mucikarmino dažai | C274: 2400 | D274: ml | F274: =IF(ISBLANK(E274),"", PRODUCT(C274,E274)) -> 
E275: Suma be PVM | F275: =IF(F274="","",SUM(F274:F274)) ->  | G275: =IF(F274="","Neužpildytos visos objektų kainos","") -> Neužpildytos visos objektų kainos
C276: Taikomas PVM dydis (%) | E276: PVM suma | F276: =IF(OR(F275="",D276=""),"", PRODUCT(D276,F275)/100) ->  | G276: =IF(D276="", "Nurodykite taikomą PVM dydį", "") -> Nurodykite taikomą PVM dydį
E277: Suma su PVM | F277: =IF(ISBLANK(F276), "", SUM(F275:F276)) -> 0
A281: 21. DALIS | B281: MASSON - GOLDNER DAŽYMO RINKINYS
A283: Tiekėjo pasiūlymas:
A284: Nr. | B284: Pavadinimas | C284: Kiekis | D284: Mato vienetas | E284: Kaina be PVM, Eur | F284: Suma be PVM, Eur | G284: Gamintojas, modelis
A285: 21. | B285: MASSON - GOLDNER DAŽYMO RINKINYS
A286: 21.1. | B286: Masson - Goldner dažymo rinkinys | C286: 16 | D286: kompl. | F286: =IF(ISBLANK(E286),"", PRODUCT(C286,E286)) -> 
E287: Suma be PVM | F287: =IF(F286="","",SUM(F286:F286)) ->  | G287: =IF(F286="","Neužpildytos visos objektų kainos","") -> Neužpildytos visos objektų kainos
... 58 more rows

Sheet Subtiekėjai ir priedai
A2: Ūkio subjektai (įskaitant kvazisubtiekėjus - fiziniai asmenys, kuriuos ketinama įdarbinti pirkimo laimėjimo atveju), kurių pajėgumais tiekėjas remiasi, kad atitiktų keliamus kvalifikacijos reikalavimus:
A5: Pavadinimas* | C5: Kodas, adresas | F5: Perduodami įsipareigojimai | I5: Perduodamų įsipareigojimų dalis nuo visos pirkimo sutarties (Eur arba %) | K5: Kval. Reikalavimo Nr.
A17: Subtiekėjams / subteikėjams / subrangovams numatomos perduoti veiklos (privaloma nurodyti) ir šių ūkio subjektų pavadinimai (jei žinomi):
A19: Pavadinimas | C19: Kodas, adresas | F19: Perduodama veikla* | I19: Perduodamos veiklos dalis nuo visos pirkimo sutarties (Eur arba %)
A33: Kartu su pasiūlymu pateikiami šie dokumentai:
A35: Nr. | B35: Dokumento pavadinimas | H35: Dokumentas yra konfidencialus? Taip/Ne
A36: 1 | B36: Jungtinės veiklos kopija (jei taikoma)
A37: 2 | B37: Europos bendrasis viešųjų pirkimų dokumentas
A38: 3 | B38: Subtiekimo sutartis, ketinimų protokolas, preliminarios sutartys ar kiti dokumentai, patvirtinantys, kad laimėjus pirkimą tiekėjui bus prieinami kitų ūkio subjektų ištekliai (jei pasitelkiami kvalifikacijos atitikimui)
A48: Pasiūlyme nurodyta Prekės kaina, išskyrus jos sudedamąsias dalis, subtiekėjai, taip pat kita informacija, kuri teisės aktų nustatyta tvarka turi būti skelbiama arba kitokiu būdu viešai prieinama visuomenei, nėra laikoma konfidencialia informacija. Konfidencialią informaciją sudaro, visų pirma, komercinė (gamybinė) paslaptis ir konfidencialieji pasiūlymų aspektai. Informacija, kurią viešai skelbti įpareigoja Lietuvos Respublikos įstatymai, negali būti tiekėjo nurodoma kaip konfidenciali, todėl, tiekėjui nurodžius tokią informaciją kaip konfidencialią, perkančioji organizacija turi teisę ją skelbti. Jei tiekėjas nenurodo konfidencialios informacijos, laikoma, kad konfidencialios informacijos tiekėjo pasiūlyme nėra. Vadovaujantis Informacijos viešinimo Centrinėje viešųjų pirkimų informacinėje sistemoje tvarkos aprašu, patvirtintu Viešųjų pirkimų tarnybos direktoriaus 2017 m. birželio 19 d. įsakymu Nr. 1S-91 „Dėl Informacijos viešinimo Centrinėje viešųjų pirkimų informacinėje sistemoje tvarkos aprašo patvirtinimo“, perkančioji organizacija laimėjusio dalyvio pasiūlymą, išskyrus informaciją, kurią tiekėjas nurodė kaip konfidencialią, paskelbs CVP IS.
A51: Tiekėjo arba jo įgalioto asmens pareigų pavadinimas:
A53: Pasirašančio asmens vardas ir pavardė:
A100: 7832-1 2023-02-07 13:46:37
